bitfinex/quotes_SOLUSD_20220211
["timestamp","ask_amount","ask_price","bid_price","bid_amount"]
[1644589605924,4.644,107.64,107.6,14.74157672]
[1644589606115,42.04860313,107.63,107.6,13.42]
[1644589606315,42.04860313,107.63,107.61,1.37361795]
[1644589607014,4.69078199,107.62,107.61,1.37361795]
[1644589607916,4.69078199,107.62,107.6,13.42]
[1644589608720,42.04860313,107.63,107.6,13.42]
[1644589609422,42.04860313,107.63,107.61,1.37361795]
[1644589611118,3.03219997,107.62,107.6,15.80366791]
[1644589611321,3.03219997,107.62,107.6,2.86668777]
[1644589611520,4.646,107.61,107.58,1.32157672]
[1644589611720,4.646,107.61,107.57,19.38557672]
[1644589611923,4.647,107.62,107.57,14.74157672]
[1644589612120,38.22214789,107.61,107.57,14.74157672]
[1644589614222,42.86914789,107.61,107.57,14.74157672]
[1644589617326,38.22214789,107.61,107.57,14.74157672]
[1644589618327,38.22214789,107.61,107.57,28.68677672]
[1644589618529,38.22214789,107.61,107.57,31.32044463]
[1644589619328,4.68115598,107.62,107.57,31.32044463]
[1644589619532,0.03415598,107.64,107.59,1.32157672]
[1644589619828,3.68015598,107.63,107.59,14.74157672]
[1644589620028,4.644,107.66,107.59,14.74157672]
[1644589620530,35.11035999,107.65,107.59,53.03146048]
[1644589620732,4.644,107.64,107.59,67.22396048]
[1644589620932,35.11035999,107.65,107.6,2.38366791]
[1644589621135,35.11035999,107.65,107.61,42.83710681]
[1644589621335,35.11035999,107.65,107.61,43.08710681]
[1644589621534,4.644,107.68,107.61,43.08710681]
[1644589621835,4.644,107.68,107.61,44.40868353]
[1644589622040,4.644,107.71,107.62,18.064]
[1644589622334,6.0,107.7,107.62,22.01924463]
[1644589622534,6.0,107.7,107.63,34.2198778]
[1644589622733,43.7765567,107.69,107.64,13.42]
[1644589622934,39.1325567,107.69,107.64,13.42]
[1644589623136,39.1325567,107.69,107.64,27.356]
[1644589623333,39.1325567,107.69,107.64,13.42]
[1644589623535,6.0,107.71,107.64,13.42]
[1644589623738,4.643,107.7,107.64,15.80366791]
[1644589623936,10.643,107.72,107.65,4.643]
[1644589624134,6.0,107.72,107.65,31.9976]
[1644589624337,6.0,107.73,107.66,2.38366791]
[1644589624538,6.0,107.73,107.67,18.062]
[1644589624735,3.642,107.72,107.68,36.95134807]
[1644589624936,3.642,107.72,107.68,50.37134807]
[1644589625144,60.82903617,107.74,107.68,50.37134807]
[1644589625341,0.46632466,107.74,107.68,50.37134807]
[1644589625542,5.10832466,107.74,107.68,53.00501598]
[1644589625742,0.46632466,107.74,107.68,53.00501598]
[1644589626742,0.50061587,107.74,107.68,66.93611598]
[1644589627243,0.46632466,107.74,107.68,71.57811598]
[1644589627444,0.02014329,107.71,107.68,71.57811598]
[1644589627641,0.02014329,107.71,107.7,48.25639228]
[1644589627842,0.02014329,107.71,107.7,80.24579228]
[1644589628745,0.00014329,107.71,107.7,82.87946019]
[1644589628946,0.00014329,107.71,107.7,97.19246019]
[1644589629145,0.00014329,107.71,107.7,48.93606791]
[1644589629948,0.00014329,107.71,107.7,64.84464293]
[1644589630157,0.00014329,107.71,107.7,78.96065516]
[1644589630550,0.00014329,107.71,107.7,246.70065516]
[1644589630750,0.00014329,107.71,107.7,255.87006332]
[1644589631369,0.00014329,107.71,107.7,246.70065516]
[1644589631569,0.00014329,107.71,107.7,238.38765516]
[1644589631869,0.00014329,107.71,107.7,33.5974]
[1644589632174,0.00014329,107.71,107.7,13.67]
[1644589632568,0.46632466,107.74,107.7,13.67]
[1644589632771,0.46632466,107.74,107.71,10.641]
[1644589633068,0.46632466,107.74,107.72,27.3439]
[1644589633269,0.46632466,107.74,107.72,27.5939]
[1644589633670,0.46632466,107.74,107.72,13.67]
[1644589634070,0.46632466,107.74,107.72,13.42]
[1644589634270,0.46632466,107.74,107.67,172.381]
[1644589634271,4.641,107.73,107.7,6.76636709]
[1644589634471,6.06439994,107.72,107.64,4.641]
[1644589634673,31.18334432,107.7,107.64,18.061]
[1644589634869,4.643,107.69,107.62,13.42]
[1644589635070,36.27335267,107.68,107.62,13.42]
[1644589635269,4.644,107.67,107.62,13.42]
[1644589636071,37.34376544,107.66,107.62,13.42]
[1644589636770,41.98776544,107.66,107.62,13.42]
[1644589637169,41.98776544,107.66,107.59,13.9396]
[1644589637373,42.02205665,107.66,107.6,13.42]
[1644589639582,37.37805665,107.66,107.6,13.42]
[1644589640785,4.644,107.65,107.6,13.42]
[1644589640984,15.027,107.65,107.6,13.42]
[1644589641385,36.27335267,107.64,107.6,13.42]
[1644589641585,36.27335267,107.64,107.59,4.644]
[1644589641586,4.644,107.63,107.59,4.644]
[1644589642383,37.34376544,107.62,107.59,4.644]
[1644589642587,6.06439994,107.61,107.58,13.42]
[1644589642785,36.27335267,107.6,107.58,13.42]
[1644589643787,6.06439994,107.59,107.58,13.42]
[1644589644188,6.06439994,107.59,107.55,13.42]
[1644589644488,6.06439994,107.59,107.55,11.96291234]
[1644589644688,37.34376544,107.58,107.55,11.96291234]
[1644589645100,37.34376544,107.58,107.56,4.648]
[1644589645290,37.34376544,107.58,107.55,11.96291234]
[1644589645491,3.03219997,107.57,107.55,11.96291234]
[1644589645689,14.025,107.62,107.55,11.96291234]
[1644589646389,40.86297887,107.61,107.55,11.96291234]
[1644589647795,4.647,107.6,107.55,11.96291234]
[1644589648393,32.75413924,107.59,107.55,11.96291234]
[1644589649592,32.75413924,107.59,107.56,4.648]
[1644589649793,32.75413924,107.59,107.55,11.96291234]
[1644589649992,32.75413924,107.59,107.55,47.94907528]
[1644589650193,32.75413924,107.59,107.56,4.648]
[1644589651794,6.06439994,107.58,107.56,4.648]
[1644589652027,6.06439994,107.58,107.55,11.96291234]
[1644589652497,35.17776443,107.57,107.55,11.96291234]
[1644589653096,6.06439994,107.56,107.55,11.96291234]
[1644589653296,35.17776443,107.57,107.56,2.62239042]
[1644589653801,4.648,107.62,107.56,2.62239042]
[1644589654797,18.5972,107.62,107.56,2.62239042]
[1644589654999,6.0,107.61,107.56,2.62239042]
[1644589655199,4.647,107.6,107.56,2.62239042]
[1644589655404,4.647,107.6,107.51,5.96857672]
[1644589655801,39.86352689,107.59,107.51,4.647]
[1644589656002,18.6032,107.58,107.51,4.647]
[1644589656202,31.1312008,107.57,107.51,4.647]
[1644589656407,4.649,107.56,107.51,4.647]
[1644589657404,34.59808467,107.55,107.51,4.647]
[1644589657625,42.58808467,107.55,107.49,20.45266791]
[1644589657803,42.58808467,107.55,107.49,16.05366791]
[1644589658605,34.59808467,107.55,107.49,16.05366791]
[1644589658806,34.59808467,107.55,107.5,4.65]
[1644589659006,34.59808467,107.55,107.51,13.42]
[1644589659209,4.649,107.58,107.52,4.649]
[1644589659406,4.649,107.6,107.52,4.649]
[1644589659606,4.649,107.6,107.53,6.0]
[1644589659806,4.649,107.6,107.53,6.25]
[1644589660007,4.649,107.6,107.53,0.25]
[1644589660207,34.5870245,107.59,107.53,0.25]
[1644589660412,34.5870245,107.59,107.53,52.74467255]
[1644589660611,4.648,107.64,107.53,68.54834046]
[1644589660808,4.648,107.64,107.54,6.0]
[1644589661011,4.648,107.64,107.55,13.42]
[1644589661210,4.648,107.64,107.55,16.05366791]
[1644589661411,4.647,107.65,107.55,16.05366791]
[1644589661709,50.69651265,107.64,107.55,56.42174171]
[1644589661908,4.647,107.63,107.55,56.42174171]
[1644589662109,26.29821504,107.62,107.55,56.42174171]
[1644589662509,26.29821504,107.62,107.56,6.0]
[1644589662710,26.29821504,107.62,107.56,13.67]
[1644589663113,26.29821504,107.62,107.56,13.42]
[1644589665140,26.29821504,107.62,107.54,19.38857672]
[1644589665337,26.29821504,107.62,107.54,14.74157672]
[1644589665537,4.647,107.61,107.54,14.74157672]
[1644589665740,44.69651265,107.6,107.53,5.96857672]
[1644589666142,26.29821504,107.58,107.53,5.96857672]
[1644589666339,26.29821504,107.58,107.53,4.647]
[1644589666539,26.29821504,107.58,107.53,5.96857672]
[1644589667340,26.29821504,107.58,107.54,14.74157672]
[1644589668541,26.29821504,107.58,107.54,13.42]
[1644589668939,26.29821504,107.58,107.54,14.74157672]
[1644589669139,4.648,107.57,107.54,13.42]
[1644589669342,34.99435436,107.56,107.53,1.32157672]
[1644589669540,34.99435436,107.56,107.52,1.32157672]
[1644589670843,39.64335436,107.56,107.52,1.32157672]
[1644589671242,34.99435436,107.56,107.52,1.32157672]
[1644589671442,4.649,107.6,107.54,1.32157672]
[1644589671843,4.648,107.63,107.54,1.32157672]
[1644589672045,4.647,107.6,107.55,1.32157672]
[1644589672242,4.647,107.62,107.55,1.32157672]
[1644589672443,41.58252478,107.61,107.55,1.32157672]
[1644589673043,41.58252478,107.61,107.56,1.32157672]
[1644589673746,4.647,107.6,107.55,1.32157672]
[1644589674054,29.41220291,107.59,107.55,1.32157672]
[1644589674248,29.41220291,107.59,107.55,5.96957672]
[1644589674647,4.648,107.63,107.56,1.32157672]
[1644589674850,18.592,107.64,107.57,15.26597672]
[1644589675051,18.592,107.64,107.58,1.32157672]
[1644589675248,10.646,107.65,107.59,4.646]
[1644589675649,47.33372666,107.64,107.59,4.646]
[1644589675850,4.646,107.63,107.59,4.646]
[1644589676952,23.66100103,107.62,107.59,4.646]
[1644589677355,4.646,107.61,107.57,1.32157672]
[1644589677552,38.81458223,107.6,107.56,14.74157672]
[1644589679055,38.81458223,107.6,107.56,1.32157672]
[1644589679258,4.647,107.59,107.55,1.32157672]
[1644589679454,4.647,107.59,107.56,1.32157672]
[1644589679856,38.81458223,107.6,107.56,1.32157672]
[1644589682760,38.81458223,107.6,107.55,1.32157672]
[1644589682961,4.648,107.59,107.55,1.32157672]
[1644589683161,32.18014546,107.58,107.55,1.32157672]
[1644589683560,32.18014546,107.58,107.52,20.71115343]
[1644589683762,32.18014546,107.58,107.51,2.64315343]
[1644589683763,4.648,107.57,107.51,2.64315343]
[1644589683964,4.648,107.57,107.51,4.77991469]
[1644589684161,6.0,107.56,107.5,0.024]
[1644589684361,42.14200551,107.55,107.48,7.44706812]
[1644589684561,42.14200551,107.55,107.5,0.024]
[1644589684764,37.49300551,107.55,107.5,0.024]
[1644589685364,19.9581,107.54,107.5,0.024]
[1644589685663,4.65,107.53,107.48,0.024]
[1644589685866,4.65,107.53,107.47,16.08715343]
[1644589686065,4.651,107.54,107.48,4.70890688]
[1644589686269,32.18014546,107.53,107.48,4.73290688]
[1644589686462,32.18014546,107.53,107.48,0.024]
[1644589686665,32.18014546,107.53,107.47,4.73290688]
[1644589686964,37.49300551,107.51,107.47,4.73290688]
[1644589687168,37.49300551,107.51,107.48,0.024]
[1644589687364,37.49300551,107.51,107.47,4.70890688]
[1644589688369,51.45440551,107.51,107.47,4.70890688]
[1644589689469,51.45440551,107.51,107.46,13.444]
[1644589690972,13.9597,107.53,107.47,2.38366791]
[1644589691170,13.9597,107.53,107.47,2.40766791]
[1644589691395,13.9597,107.53,107.47,16.07766791]
[1644589691572,13.9597,107.53,107.47,15.82766791]
[1644589691771,59.91,107.59,107.47,0.024]
[1644589691772,4.651,107.52,107.47,0.024]
[1644589691972,15.811,107.52,107.48,0.024]
[1644589692170,15.811,107.52,107.46,0.024]
[1644589692171,18.6152,107.51,107.46,0.024]
[1644589692572,53.64125227,107.5,107.46,0.024]
[1644589692770,4.652,107.49,107.44,4.673]
[1644589692971,13.835,107.49,107.44,4.673]
[1644589693572,22.0318987,107.48,107.44,4.673]
[1644589693772,46.38206482,107.46,107.44,4.649]
[1644589693978,46.38206482,107.46,107.44,4.673]
[1644589694173,46.38206482,107.46,107.44,4.649]
[1644589694374,46.38206482,107.46,107.42,4.676]
[1644589694577,46.38206482,107.46,107.42,4.652]
[1644589695374,60.35086482,107.46,107.42,4.652]
[1644589696577,4.652,107.45,107.42,4.652]
[1644589696774,23.29108615,107.44,107.42,3.652]
[1644589697176,23.29108615,107.44,107.42,0.24704724]
[1644589697578,4.654,107.43,107.39,0.024]
[1644589697877,36.98213965,107.42,107.38,0.024]
[1644589698077,36.98213965,107.42,107.36,12.00693556]
[1644589698277,41.63813965,107.42,107.37,6.0]
[1644589698477,36.98213965,107.42,107.37,6.024]
[1644589698899,36.98213965,107.42,107.37,0.024]
[1644589699084,36.98213965,107.42,107.36,6.0]
[1644589699278,36.98213965,107.42,107.37,46.368814]
[1644589699481,4.655,107.45,107.37,45.392814]
[1644589699780,4.655,107.45,107.38,21.80366791]
[1644589699978,4.654,107.47,107.39,4.654]
[1644589700182,4.654,107.47,107.39,7.31166791]
[1644589700379,13.9695,107.46,107.4,0.024]
[1644589700579,32.56163451,107.45,107.4,0.024]
[1644589700779,32.56163451,107.45,107.39,0.024]
[1644589700979,27.90763451,107.45,107.39,4.654]
[1644589701179,27.90763451,107.45,107.39,4.678]
[1644589701581,27.90763451,107.45,107.39,52.30328708]
[1644589701779,27.90763451,107.45,107.39,54.93695499]
[1644589701979,27.90763451,107.45,107.39,7.31166791]
[1644589702279,27.90763451,107.45,107.39,0.024]
[1644589702280,56.58353451,107.45,107.39,0.024]
[1644589702479,56.58353451,107.45,107.38,0.024]
[1644589704280,56.58353451,107.45,107.38,36.61728474]
[1644589704480,46.53253451,107.45,107.38,39.00095265]
[1644589704680,41.87853451,107.45,107.39,4.654]
[1644589704881,4.654,107.44,107.39,0.024]
[1644589705081,4.654,107.44,107.39,0.25]
[1644589705381,4.654,107.44,107.39,2.63366791]
[1644589705582,4.654,107.44,107.39,2.38366791]
[1644589705980,39.3605637,107.43,107.39,2.38366791]
[1644589707689,49.9455637,107.43,107.38,0.024]
[1644589707883,4.655,107.42,107.38,0.024]
[1644589708286,27.90763451,107.41,107.38,0.024]
[1644589708485,27.90763451,107.41,107.38,2.38366791]
[1644589708684,4.655,107.41,107.39,3.03219997]
[1644589708888,4.655,107.43,107.4,3.03219997]
[1644589709585,53.08306431,107.43,107.39,0.024]
[1644589709784,4.655,107.43,107.38,37.42322842]
[1644589710188,4.655,107.43,107.38,2.40766791]
[1644589710586,4.655,107.43,107.38,2.65766791]
[1644589710786,18.6249,107.46,107.38,16.07766791]
[1644589710987,18.6249,107.46,107.39,0.024]
[1644589711186,63.75118601,107.46,107.39,35.14396986]
[1644589711386,63.75118601,107.46,107.4,0.024]
[1644589711586,59.09618601,107.46,107.4,0.024]
[1644589712386,18.6213,107.48,107.41,2.38366791]
[1644589712587,4.652,107.5,107.42,13.444]
[1644589712887,4.652,107.53,107.43,16.36996791]
[1644589713088,4.651,107.56,107.44,13.42]
[1644589713288,41.92733543,107.55,107.45,0.024]
[1644589713487,46.5458,107.53,107.45,2.40766791]
[1644589713688,11.42236578,107.52,107.46,0.024]
[1644589713919,11.42236578,107.52,107.46,2.40766791]
[1644589714089,6.77136578,107.52,107.46,51.044164]
[1644589714292,6.77136578,107.52,107.47,2.38366791]
[1644589714489,6.77136578,107.52,107.47,2.40766791]
[1644589714689,6.77136578,107.52,107.47,2.65766791]
[1644589714889,6.77136578,107.52,107.48,2.38366791]
[1644589715590,13.9597,107.53,107.48,2.38366791]
[1644589715790,4.65,107.52,107.48,2.40766791]
[1644589715991,4.65,107.54,107.48,2.38366791]
[1644589716190,13.9579,107.55,107.48,16.07766791]
[1644589716391,13.9579,107.55,107.48,15.82766791]
[1644589716591,4.65,107.54,107.48,15.82766791]
[1644589716793,61.71341391,107.54,107.48,15.82766791]
[1644589717089,57.06341391,107.54,107.48,15.82766791]
[1644589717291,57.06341391,107.54,107.48,0.024]
[1644589717490,4.65,107.53,107.46,15.82766791]
[1644589717691,4.65,107.53,107.47,0.024]
[1644589717892,5.5937873,107.52,107.47,0.024]
[1644589718893,10.2447873,107.52,107.47,2.40766791]
[1644589719194,10.2447873,107.52,107.47,2.65766791]
[1644589719396,4.651,107.56,107.47,48.88693173]
[1644589719593,4.651,107.56,107.48,0.024]
[1644589719793,13.9569,107.55,107.48,13.9805]
[1644589719992,13.9569,107.55,107.48,16.36416791]
[1644589720192,13.9569,107.55,107.48,16.61416791]
[1644589720392,43.85013638,107.54,107.48,16.61416791]
[1644589720594,4.65,107.53,107.49,42.13621746]
[1644589720793,13.9569,107.55,107.49,42.38621746]
[1644589720994,13.9569,107.55,107.49,44.76988537]
[1644589721193,18.6055,107.56,107.49,44.76988537]
[1644589721416,51.1682,107.59,107.49,72.14488537]
[1644589721596,46.5182,107.59,107.49,72.14488537]
[1644589721996,47.39054868,107.58,107.49,72.14488537]
[1644589722293,18.6032,107.57,107.5,24.6021]
[1644589722493,46.5102,107.61,107.5,24.6021]
[1644589722494,51.1592,107.61,107.5,24.6021]
[1644589722706,6.0,107.6,107.51,2.38366791]
[1644589722893,6.0,107.6,107.51,7.03166791]
[1644589723093,6.0,107.6,107.51,7.28166791]
[1644589723293,36.44648401,107.59,107.52,50.90737791]
[1644589723493,41.09448401,107.59,107.52,50.90737791]
[1644589723693,13.9528,107.58,107.52,51.15737791]
[1644589723895,36.44648401,107.59,107.52,51.15737791]
[1644589724096,4.648,107.6,107.53,7.03166791]
[1644589724596,4.648,107.6,107.53,4.648]
[1644589724795,8.38366791,107.59,107.5,27.3738]
[1644589724994,13.03166791,107.59,107.5,27.3738]
[1644589725199,13.03166791,107.59,107.5,30.00746791]
[1644589725397,10.648,107.59,107.5,30.00746791]
[1644589725599,35.55281789,107.58,107.5,69.92064115]
[1644589725797,10.649,107.57,107.5,69.92064115]
[1644589725996,13.14588332,107.56,107.5,69.92064115]
[1644589726196,13.14588332,107.56,107.5,69.67064115]
[1644589726397,13.14588332,107.56,107.5,29.75746791]
[1644589726598,37.73748332,107.56,107.5,13.42]
[1644589726799,37.73748332,107.56,107.48,2.40766791]
[1644589726800,40.12115123,107.56,107.48,2.40766791]
[1644589727000,10.65,107.55,107.48,0.024]
[1644589727400,35.55281789,107.54,107.48,0.024]
[1644589727600,4.65,107.53,107.48,0.024]
[1644589727798,35.55281789,107.54,107.47,18.6309]
[1644589727999,4.651,107.53,107.48,0.024]
[1644589728200,4.651,107.53,107.47,18.6309]
[1644589728403,4.651,107.53,107.47,13.9819]
[1644589728602,13.14588332,107.52,107.47,13.9819]
[1644589729302,4.651,107.56,107.47,13.9819]
[1644589729500,4.651,107.56,107.48,0.024]
[1644589729803,13.9585,107.54,107.48,0.024]
[1644589730000,13.9585,107.54,107.48,4.674]
[1644589730400,47.88482236,107.53,107.48,4.674]
[1644589731700,52.53482236,107.53,107.48,0.024]
[1644589731901,52.53482236,107.53,107.47,16.61556791]
[1644589734405,52.53482236,107.53,107.47,21.26656791]
[1644589737811,13.9585,107.54,107.48,40.55004945]
[1644589738012,13.9566,107.55,107.48,54.53044945]
[1644589738213,13.9566,107.55,107.48,57.16411736]
[1644589738416,4.651,107.56,107.49,13.42]
[1644589738614,4.65,107.58,107.49,24.07]
[1644589738816,37.44917175,107.57,107.5,40.65256669]
[1644589739014,4.649,107.56,107.5,54.07256669]
[1644589739216,4.649,107.56,107.5,56.7062346]
[1644589739416,51.1569,107.61,107.5,70.6593346]
[1644589739616,51.1569,107.61,107.51,4.648]
[1644589739816,51.1569,107.61,107.51,24.318]
[1644589740019,51.1569,107.61,107.51,24.068]
[1644589740219,46.93808208,107.6,107.51,26.70166791]
[1644589740419,1.76061913,107.58,107.52,57.4399887]
[1644589740820,1.76061913,107.58,107.52,60.07365661]
[1644589741420,1.76061913,107.58,107.52,16.33536791]
[1644589741621,1.76061913,107.58,107.52,13.9517]
[1644589741819,4.649,107.57,107.52,13.9517]
[1644589742220,6.0,107.56,107.5,27.3741]
[1644589742418,6.0,107.56,107.49,4.648]
[1644589742419,4.649,107.55,107.49,4.648]
[1644589742623,1.77913344,107.54,107.49,4.648]
[1644589743426,15.73663344,107.54,107.49,4.648]
[1644589743629,4.65,107.53,107.49,4.648]
[1644589743939,46.91956777,107.52,107.49,4.648]
[1644589744340,4.65,107.51,107.49,4.648]
[1644589744540,4.65,107.55,107.47,13.9822]
[1644589744741,4.65,107.55,107.48,0.024]
[1644589745341,38.98276923,107.54,107.48,0.024]
[1644589745741,52.94036923,107.54,107.48,0.024]
[1644589746541,4.65,107.53,107.48,0.024]
[1644589746841,9.71593198,107.52,107.47,14.2322]
[1644589747041,14.36693198,107.52,107.48,0.024]
[1644589747242,9.71593198,107.52,107.47,13.9822]
[1644589747443,4.651,107.55,107.47,13.9822]
[1644589747644,4.651,107.55,107.48,0.024]
[1644589747844,13.9592,107.53,107.48,0.024]
[1644589748042,4.65,107.52,107.47,13.9822]
[1644589748441,43.11629048,107.53,107.47,13.9822]
[1644589748642,4.651,107.52,107.47,14.2322]
[1644589749846,43.11629048,107.53,107.47,14.2322]
[1644589750345,43.11629048,107.53,107.47,13.9822]
[1644589750548,4.651,107.52,107.47,13.9822]
[1644589750947,4.651,107.52,107.47,0.024]
[1644589751347,5.58241073,107.51,107.47,0.024]
[1644589751952,5.58241073,107.51,107.45,2.66715343]
[1644589752150,5.58241073,107.51,107.45,0.024]
[1644589752349,4.651,107.5,107.45,0.024]
[1644589752550,4.651,107.5,107.44,4.675]
[1644589752551,10.651,107.5,107.44,4.675]
[1644589752752,34.12435304,107.49,107.44,4.651]
[1644589752949,4.652,107.48,107.44,4.651]
[1644589753150,14.57434817,107.47,107.44,4.651]
[1644589753549,14.57434817,107.47,107.42,0.024]
[1644589753751,4.652,107.46,107.41,0.024]
[1644589753950,4.652,107.46,107.4,2.64315343]
[1644589754150,4.652,107.46,107.4,0.024]
[1644589754351,6.0,107.45,107.4,0.024]
[1644589754548,34.12435304,107.45,107.39,7.11450781]
[1644589754751,34.12435304,107.45,107.39,21.33310781]
[1644589755149,34.12435304,107.45,107.4,4.44735438]
[1644589755352,34.12435304,107.45,107.4,0.024]
[1644589755551,34.12435304,107.45,107.39,14.2426]
[1644589756858,4.654,107.44,107.39,14.2426]
[1644589757055,4.654,107.44,107.39,14.2186]
[1644589757355,14.57434817,107.43,107.39,14.2186]
[1644589757755,4.654,107.45,107.39,14.2186]
[1644589757958,4.654,107.45,107.39,14.2426]
[1644589758556,18.6237,107.45,107.39,0.274]
[1644589758755,18.6237,107.45,107.39,0.024]
[1644589758756,13.9697,107.45,107.39,0.024]
[1644589758956,13.9697,107.45,107.38,4.678]
[1644589758957,10.654,107.44,107.38,4.678]
[1644589759356,10.654,107.44,107.38,4.654]
[1644589759558,34.18693574,107.43,107.34,0.024]
[1644589759756,10.656,107.42,107.34,4.43427218]
[1644589759957,10.656,107.42,107.35,0.024]
[1644589760156,4.656,107.42,107.35,0.024]
[1644589760356,34.18693574,107.43,107.35,0.024]
[1644589760558,4.655,107.42,107.36,4.655]
[1644589760757,14.51176547,107.41,107.37,0.024]
[1644589760958,4.656,107.43,107.35,39.63820831]
[1644589761164,4.656,107.44,107.36,4.656]
[1644589761358,46.5763,107.46,107.36,6.024]
[1644589761359,4.655,107.45,107.36,6.024]
[1644589761559,10.655,107.45,107.37,0.024]
[1644589761958,40.89337985,107.44,107.37,38.34373932]
[1644589762359,40.89337985,107.44,107.37,52.56513932]
[1644589762760,24.6254,107.45,107.37,52.56513932]
[1644589762960,19.9704,107.45,107.38,4.655]
[1644589763360,6.0,107.45,107.38,18.8747]
[1644589763861,34.95589712,107.45,107.39,42.9191426]
[1644589764064,39.60989712,107.45,107.39,0.024]
[1644589764264,39.60989712,107.45,107.38,18.6247]
[1644589764460,39.60989712,107.45,107.39,0.024]
[1644589764660,39.60989712,107.45,107.38,13.9697]
[1644589764861,39.60989712,107.45,107.38,14.2197]
[1644589765060,39.60989712,107.45,107.39,46.97855159]
[1644589765260,39.60989712,107.45,107.39,47.00255159]
[1644589766263,6.0,107.46,107.39,47.00255159]
[1644589766462,6.0,107.46,107.4,0.024]
[1644589766762,6.0,107.47,107.4,0.024]
[1644589766962,4.652,107.49,107.4,0.024]
[1644589767162,39.97265011,107.49,107.4,0.024]
[1644589767361,10.652,107.48,107.4,0.024]
[1644589767563,8.7260511,107.47,107.4,0.024]
[1644589767861,8.7260511,107.47,107.41,42.71607403]
[1644589768061,4.652,107.46,107.4,0.024]
[1644589768262,10.652,107.46,107.4,0.024]
[1644589768863,73.49546791,107.46,107.4,0.024]
[1644589769063,39.97265011,107.45,107.4,0.024]
[1644589769263,10.654,107.44,107.37,0.024]
[1644589769465,8.7260511,107.43,107.4,0.024]
[1644589769664,4.654,107.42,107.37,0.024]
[1644589769864,13.3810511,107.43,107.36,48.33323409]
[1644589770064,8.7260511,107.43,107.37,0.024]
[1644589770287,4.655,107.42,107.37,0.024]
[1644589770485,8.7260511,107.43,107.36,48.33323409]
[1644589770686,8.7260511,107.43,107.37,0.024]
[1644589771088,4.655,107.45,107.37,0.024]
[1644589771289,6.0,107.46,107.38,4.655]
[1644589771490,6.0,107.46,107.39,0.024]
[1644589772088,53.24343203,107.46,107.39,43.50001485]
[1644589772388,53.24343203,107.46,107.4,0.024]
[1644589772587,4.654,107.45,107.4,0.024]
[1644589772789,4.654,107.45,107.39,43.50001485]
[1644589772988,10.654,107.46,107.39,43.50001485]
[1644589773189,6.0,107.46,107.4,0.024]
[1644589773389,18.074,107.53,107.4,13.444]
[1644589773592,4.652,107.5,107.4,13.444]
[1644589773888,6.0,107.49,107.4,13.444]
[1644589774089,19.967,107.49,107.41,45.72958304]
[1644589774288,10.652,107.49,107.42,0.024]
[1644589774488,6.0,107.49,107.42,0.024]
[1644589774690,6.0,107.5,107.42,0.024]
[1644589774889,6.0,107.54,107.43,4.651]
[1644589775089,4.651,107.53,107.44,0.024]
[1644589775291,66.52849746,107.53,107.45,13.9615]
[1644589775491,66.52849746,107.53,107.46,45.64070327]
[1644589775492,18.6125,107.53,107.46,45.64070327]
[1644589775690,4.651,107.53,107.46,45.89070327]
[1644589775891,4.651,107.53,107.46,54.06370327]
[1644589776391,4.651,107.53,107.47,13.9589]
[1644589776590,4.651,107.53,107.48,43.92646252]
[1644589777291,4.651,107.53,107.48,57.88426252]
[1644589777490,6.0,107.54,107.48,57.88426252]
[1644589777789,49.15935767,107.54,107.48,57.88426252]
[1644589778591,63.11845767,107.54,107.48,43.92646252]
[1644589778793,4.65,107.53,107.48,43.92646252]
[1644589779192,63.11845767,107.54,107.46,27.6291]